fUSD/lending_fUSD_20250602
["ID","MTS","AMOUNT","RATE_DAILY","PERIOD"]
[363768790,1748866254172,-681.4,0.00019315,2]
[363768792,1748866254182,-1007.64,0.00019315,2]
[363768794,1748866254191,-1074.37,0.00019315,2]
[363768796,1748866254201,-420.0,0.00019315,2]
[363768798,1748866254210,-420.0,0.00019315,2]
[363768800,1748866254220,-2223.6662,0.00019315,2]
[363768802,1748866254229,-424.65287504,0.00019315,2]
[363768804,1748866254239,-420.0,0.00019315,2]
[363768806,1748866254249,-420.0,0.00019315,2]
[363768808,1748866254258,-420.0,0.00019315,2]
[363768810,1748866254267,-420.0,0.00019315,2]
[363768812,1748866254277,-1222.76,0.00019315,2]
[363768814,1748866254286,-420.0,0.00019315,2]
[363768816,1748866254296,-420.0,0.00019315,2]
[363768818,1748866254305,-1702.4,0.00019315,2]
[363768820,1748866254316,-7518.89,0.00019315,2]
[363768822,1748866254325,-420.0,0.00019315,2]
[363768824,1748866254334,-420.0,0.00019315,2]
[363768826,1748866254344,-420.0,0.00019315,2]
[363768828,1748866254353,-662.91,0.00019315,2]
[363768830,1748866254362,-420.0,0.00019315,2]
[363768832,1748866254372,-420.0,0.00019315,2]
[363768834,1748866254382,-420.0,0.00019315,2]
[363768836,1748866254391,-420.0,0.00019315,2]
[363768838,1748866254401,-428.35924943,0.00019315,2]
[363768840,1748866254410,-432.83654666,0.00019315,2]
[363768842,1748866254419,-512.83,0.00019315,2]
[363768844,1748866254429,-420.0,0.00019315,2]
[363768846,1748866254438,-420.0,0.00019315,2]
[363768848,1748866254447,-420.0,0.00019315,2]
[363768850,1748866254457,-420.0,0.00019315,2]
[363768852,1748866254466,-3843.98,0.00019315,2]
[363768854,1748866254476,-420.0,0.00019315,2]
[363768856,1748866254486,-420.0,0.00019315,2]
[363768858,1748866254501,-947.92,0.00019315,2]
[363768860,1748866254511,-420.0,0.00019315,2]
[363768862,1748866254521,-915.88,0.00019315,2]
[363768864,1748866254531,-420.0,0.00019315,2]
[363768866,1748866254540,-420.0,0.00019315,2]
[363768868,1748866254550,-997.85,0.00019315,2]
[363768870,1748866254561,-420.0,0.00019315,2]
[363768872,1748866254571,-585.37,0.00019315,2]
[363768874,1748866254581,-466.54510977,0.00019315,2]
[363768876,1748866254591,-420.0,0.00019315,2]
[363768878,1748866254600,-420.0,0.00019315,2]
[363768880,1748866254610,-420.0,0.00019315,2]
[363768882,1748866254620,-420.0,0.00019315,2]
[363768884,1748866254629,-420.0,0.00019315,2]
[363768885,1748866254639,-204.73550305,0.00019315,2]
[363768886,1748866254649,-420.0,0.00019315,2]
[363768887,1748866254659,-420.0,0.00019315,2]
[363768888,1748866254669,-420.0,0.00019315,2]
[363768889,1748866254678,-420.0,0.00019315,2]
[363768890,1748866254688,-420.0,0.00019315,2]
[363768891,1748866254698,-420.0,0.00019315,2]
[363768892,1748866254707,-15616.11,0.00019315,2]
[363768893,1748866254717,-420.0,0.00019315,2]
[363768895,1748866254726,-420.0,0.00019315,2]
[363768897,1748866254735,-1578.05,0.00019315,2]
[363768899,1748866254745,-420.0,0.00019315,2]
[363768901,1748866254754,-431.23231374,0.00019315,2]
[363768903,1748866254764,-420.0,0.00019315,2]
[363768905,1748866254774,-1132.96,0.00019315,2]
[363768907,1748866254783,-420.0,0.00019315,2]
[363768909,1748866254792,-679.27,0.00019315,2]
[363768911,1748866254802,-198.5778514,0.00019315,2]
[363768913,1748866254811,-420.0,0.00019315,2]
[363768915,1748866254820,-420.0,0.00019315,2]
[363768917,1748866254829,-523.32191539,0.00019315,2]
[363768919,1748866254838,-428.43021151,0.00019315,2]
[363768921,1748866254848,-174.2450247,0.00019315,2]
[363768923,1748866254858,-420.0,0.00019315,2]
[363768925,1748866254867,-420.0,0.00019315,2]
[363768927,1748866254878,-420.0,0.00019315,2]
[363768928,1748866254887,-420.0,0.00019315,2]
[363768931,1748866254897,-430.6129732,0.00019315,2]
[363768933,1748866254907,-420.0,0.00019315,2]
[363768935,1748866254916,-420.0,0.00019315,2]
[363768937,1748866254925,-420.0,0.00019315,2]
[363768939,1748866254935,-420.0,0.00019315,2]
[363768940,1748866254944,-430.21236852,0.00019315,2]
[363768942,1748866254954,-420.0,0.00019315,2]
[363768945,1748866254964,-263.5,0.00019315,2]
[363768947,1748866254974,-420.0,0.00019315,2]
[363768948,1748866254983,-420.0,0.00019315,2]
[363768950,1748866254993,-420.0,0.00019315,2]
[363768953,1748866255003,-420.0,0.00019315,2]
[363768955,1748866255013,-420.0,0.00019315,2]
[363768957,1748866255022,-420.0,0.00019315,2]
[363768959,1748866255032,-420.0,0.00019315,2]
[363768961,1748866255042,-420.0,0.00019315,2]
[363768963,1748866255055,-797.02,0.00019315,2]
[363768965,1748866255067,-431.38570449,0.00019315,2]
[363768967,1748866255077,-420.0,0.00019315,2]
[363768969,1748866255087,-420.0,0.00019315,2]
[363768971,1748866255097,-420.0,0.00019315,2]
[363768973,1748866255106,-420.0,0.00019315,2]
[363768988,1748866255248,-420.0,0.00019315,2]
[363768990,1748866255259,-420.0,0.00019315,2]
[363768992,1748866255270,-481.01,0.00019315,2]
[363768994,1748866255279,-474.65879142,0.00019315,2]
[363768996,1748866255288,-434.62971967,0.00019315,2]
[363768998,1748866255298,-420.0,0.00019315,2]
[363769000,1748866255308,-420.0,0.00019315,2]
[363769002,1748866255318,-420.0,0.00019315,2]
[363769004,1748866255328,-420.0,0.00019315,2]
[363769006,1748866255338,-420.0,0.00019315,2]
[363769008,1748866255347,-4428.18,0.00019315,2]
[363769010,1748866255356,-420.0,0.00019315,2]
[363769012,1748866255367,-420.0,0.00019315,2]
[363769014,1748866255376,-420.0,0.00019315,2]
[363769016,1748866255385,-420.0,0.00019315,2]
[363769018,1748866255394,-432.31759828,0.00019315,2]
[363769020,1748866255404,-3023.12,0.00019315,2]
[363769022,1748866255414,-420.0,0.00019315,2]
[363769024,1748866255423,-467.99704113,0.00019315,2]
[363769026,1748866255432,-420.0,0.00019315,2]
[363769028,1748866255442,-420.0,0.00019315,2]
[363769030,1748866255452,-430.0669705,0.00019315,2]
[363769032,1748866255461,-420.0,0.00019315,2]
[363769034,1748866255470,-420.0,0.00019315,2]
[363769036,1748866255480,-420.0,0.00019315,2]
[363769038,1748866255490,-420.0,0.00019315,2]
[363769040,1748866255499,-431.06620912,0.00019315,2]
[363769042,1748866255509,-420.0,0.00019315,2]
[363769044,1748866255519,-420.0,0.00019315,2]
[363769046,1748866255528,-420.0,0.00019315,2]
[363769048,1748866255538,-420.0,0.00019315,2]
[363769050,1748866255548,-421.78271785,0.00019315,2]
[363769052,1748866255557,-420.0,0.00019315,2]
[363769054,1748866255568,-646.97,0.00019315,2]
[363769056,1748866255578,-420.0,0.00019315,2]
[363769058,1748866255589,-420.0,0.00019315,2]
[363769060,1748866255599,-420.0,0.00019315,2]
[363769062,1748866255609,-420.0,0.00019315,2]
[363769064,1748866255619,-644.19,0.00019315,2]
[363769066,1748866255629,-1091.75,0.00019315,2]
[363769067,1748866255639,-420.0,0.00019315,2]
[363769069,1748866255648,-888.23,0.00019315,2]
[363769071,1748866255658,-420.0,0.00019315,2]
[363769073,1748866255667,-420.0,0.00019315,2]
[363769075,1748866255677,-420.0,0.00019315,2]
[363769077,1748866255687,-444.65,0.00019315,2]
[363769079,1748866255696,-420.0,0.00019315,2]
[363769081,1748866255706,-420.0,0.00019315,2]
[363769083,1748866255715,-420.0,0.00019315,2]
[363769085,1748866255725,-420.0,0.00019315,2]
[363769087,1748866255734,-420.0,0.00019315,2]
[363769089,1748866255744,-420.0,0.00019315,2]
[363769091,1748866255754,-513.47,0.00019315,2]
[363769093,1748866255763,-420.0,0.00019315,2]
[363769095,1748866255773,-420.0,0.00019315,2]
[363769097,1748866255782,-420.0,0.00019315,2]
[363769099,1748866255791,-420.0,0.00019315,2]
[363769101,1748866255801,-567.29,0.00019315,2]
[363769103,1748866255811,-420.0,0.00019315,2]
[363769105,1748866255822,-922.08,0.00019315,2]
[363769107,1748866255831,-420.0,0.00019315,2]
[363769109,1748866255841,-421.92331181,0.00019315,2]
[363769111,1748866255851,-420.0,0.00019315,2]
[363769113,1748866255860,-420.0,0.00019315,2]
[363769115,1748866255870,-735.73,0.00019315,2]
[363769117,1748866255880,-420.0,0.00019315,2]
[363769119,1748866255889,-420.0,0.00019315,2]
[363769121,1748866255899,-420.0,0.00019315,2]
[363769123,1748866255907,-420.0,0.00019315,2]
[363769125,1748866255917,-420.0,0.00019315,2]
[363769127,1748866255926,-420.0,0.00019315,2]
[363769129,1748866255936,-420.0,0.00019315,2]
[363769131,1748866255945,-420.0,0.00019315,2]
[363769133,1748866255955,-513.74,0.00019315,2]
[363769135,1748866255964,-420.0,0.00019315,2]
[363769137,1748866255974,-701.56,0.00019315,2]
[363769139,1748866255983,-1971.96,0.00019315,2]
[363769140,1748866255993,-420.0,0.00019315,2]
[363769142,1748866256002,-420.0,0.00019315,2]
[363769144,1748866256012,-1313.43,0.00019315,2]
[363769147,1748866256022,-1461.21,0.00019315,2]
[363769148,1748866256032,-420.0,0.00019315,2]
[363769150,1748866256041,-420.0,0.00019315,2]
[363769152,1748866256054,-420.0,0.00019315,2]
[363769154,1748866256065,-420.0,0.00019315,2]
[363769156,1748866256075,-420.0,0.00019315,2]
[363769158,1748866256085,-1779.74,0.00019315,2]
[363769160,1748866256095,-420.0,0.00019315,2]
[363769162,1748866256105,-420.0,0.00019315,2]
[363769164,1748866256114,-420.0,0.00019315,2]
[363769166,1748866256125,-535.33492054,0.00019315,2]
[363769168,1748866256134,-420.0,0.00019315,2]
[363769170,1748866256143,-420.0,0.00019315,2]
[363769172,1748866256153,-420.0,0.00019315,2]
[363769174,1748866256165,-543.12,0.00019315,2]
[363769176,1748866256174,-420.0,0.00019315,2]
[363769178,1748866256183,-420.0,0.00019315,2]
[363769180,1748866256194,-420.0,0.00019315,2]
[363769181,1748866256204,-420.0,0.00019315,2]
[363769183,1748866256214,-536.44059644,0.00019315,2]
[363769185,1748866256223,-1360.86,0.00019315,2]
[363769187,1748866256233,-420.0,0.00019315,2]
[363769189,1748866256242,-420.0,0.00019315,2]
[363769191,1748866256252,-420.0,0.00019315,2]
[363769194,1748866256262,-420.0,0.00019315,2]
[363769196,1748866256272,-430.02981105,0.00019315,2]
[363769197,1748866256281,-1670.1,0.00019315,2]
[363769199,1748866256291,-2670.74,0.00019315,2]
[363769200,1748866256301,-420.0,0.00019315,2]
[363769201,1748866256313,-448.3,0.00019315,2]
[363769202,1748866256323,-426.28511435,0.00019315,2]
[363769203,1748866256332,-429.66027216,0.00019315,2]
[363769204,1748866256342,-420.0,0.00019315,2]
[363769205,1748866256352,-420.0,0.00019315,2]
[363769206,1748866256362,-420.0,0.00019315,2]
[363769208,1748866256372,-420.0,0.00019315,2]
[363769210,1748866256382,-420.0,0.00019315,2]
[363769212,1748866256392,-420.0,0.00019315,2]
[363769213,1748866256401,-814.86,0.00019315,2]
[363769215,1748866256411,-420.0,0.00019315,2]
[363769218,1748866256421,-427.1514373,0.00019315,2]
[363769220,1748866256431,-420.0,0.00019315,2]
[363769221,1748866256440,-420.0,0.00019315,2]
[363769223,1748866256450,-420.0,0.00019315,2]
[363769225,1748866256459,-726.71,0.00019315,2]
[363769227,1748866256468,-420.0,0.00019315,2]
[363769229,1748866256478,-420.0,0.00019315,2]
[363769231,1748866256488,-420.0,0.00019315,2]
[363769233,1748866256497,-1615.79,0.00019315,2]
[363769235,1748866256507,-420.0,0.00019315,2]
[363769237,1748866256516,-420.0,0.00019315,2]
[363769239,1748866256526,-420.0,0.00019315,2]
[363769241,1748866256535,-570.67,0.00019315,2]
[363769243,1748866256545,-420.0,0.00019315,2]
[363769245,1748866256554,-1196.54,0.00019315,2]
[363769247,1748866256565,-420.0,0.00019315,2]
[363769249,1748866256574,-432.86718828,0.00019315,2]
[363769251,1748866256584,-155.46184694,0.00019315,2]
[363769253,1748866256593,-469.02,0.00019315,2]
[363769254,1748866256603,-906.42967914,0.00019331,2]
[363769257,1748866256614,-150.0,0.00019333,4]
[363769259,1748866256624,-150.0,0.00019333,4]
[363769261,1748866256634,-150.0,0.00019333,4]
[363769263,1748866256644,-405.18158328,0.00019352,2]
[363769265,1748866256654,-609.1366744,0.00019352,2]
[363769267,1748866256664,-6264.1693462,0.00019352,2]
[363769269,1748866256673,-4481.58313828,0.00019352,2]
[363769270,1748866256683,-515.37207662,0.00019373,2]
[363769272,1748866256693,-501.19397647,0.00019373,2]
[363769274,1748866256703,-500.0,0.00019373,2]
[363769276,1748866256713,-500.0,0.00019373,2]
[363769278,1748866256723,-500.0,0.00019373,2]
[363769280,1748866256733,-500.0,0.00019373,2]
[363769282,1748866256742,-375.45320185,0.00019373,2]
[363769284,1748866256752,-645.16798888,0.00019373,2]
[363769286,1748866256761,-500.0,0.00019373,2]
[363769288,1748866256771,-524.56167798,0.00019373,2]
[363769290,1748866256781,-500.0,0.00019373,2]
[363769292,1748866256791,-150.0,0.00019385,4]
[363769294,1748866256801,-192.77793536,0.00019442,2]
[363769296,1748866256813,-500.0,0.00019443,2]
[363769298,1748866256823,-6264.1693462,0.00019443,2]
[363769300,1748866256833,-4481.58313828,0.00019443,2]
[363769302,1748866256843,-500.0,0.00019451,2]
[363769304,1748866256853,-500.0,0.00019451,2]
[363769306,1748866256863,-500.0,0.00019451,2]
[363769308,1748866256873,-431.41498111,0.00019452,2]
[363769310,1748866256883,-420.0,0.00019452,2]
[363769312,1748866256893,-420.0,0.00019452,2]
[363769314,1748866256902,-460.28,0.00019452,2]
[363769316,1748866256911,-420.0,0.00019452,2]
[363769318,1748866256921,-168.80805671,0.00019452,2]
[363769320,1748866256930,-420.0,0.00019452,2]
[363769322,1748866256940,-420.0,0.00019452,2]
[363769324,1748866256949,-371.66589181,0.00019452,2]
[363769326,1748866256959,-420.0,0.00019452,2]
[363769328,1748866256968,-420.0,0.00019452,2]
[363769330,1748866256978,-420.0,0.00019452,2]
[363769332,1748866256988,-420.0,0.00019452,2]
[363769334,1748866256998,-513.3,0.00019452,2]
[363769336,1748866257008,-420.0,0.00019452,2]
[363769338,1748866257018,-420.0,0.00019452,2]
[363769340,1748866257027,-420.0,0.00019452,2]
[363769341,1748866257036,-196.55780159,0.00019452,2]
[363769343,1748866257046,-420.0,0.00019452,2]
[363769345,1748866257058,-421.1,0.00019452,2]
[363769347,1748866257069,-420.0,0.00019452,2]
[363769349,1748866257079,-435.96750397,0.00019452,2]
[363769352,1748866257090,-504.34,0.00019452,2]
[363769354,1748866257101,-420.0,0.00019452,2]
[363769355,1748866257110,-420.0,0.00019452,2]
[363769357,1748866257120,-258.19750397,0.00019452,2]
[363769359,1748866257132,-420.0,0.00019452,2]
[363769361,1748866257142,-420.0,0.00019452,2]
[363769363,1748866257152,-420.0,0.00019452,2]
[363769365,1748866257161,-420.0,0.00019452,2]
[363769367,1748866257172,-360.91716092,0.00019452,2]
[363769369,1748866257181,-426.4667871,0.00019452,2]
[363769371,1748866257191,-420.0,0.00019452,2]
[363769373,1748866257200,-451.69,0.00019452,2]
[363769375,1748866257210,-425.82447782,0.00019452,2]
[363769377,1748866257221,-420.0,0.00019452,2]
[363769379,1748866257230,-541.04,0.00019452,2]
[363769381,1748866257240,-420.0,0.00019452,2]
[363769383,1748866257250,-556.87,0.00019452,2]
[363769385,1748866257260,-420.0,0.00019452,2]
[363769387,1748866257269,-345.27630197,0.00019452,2]
[363769389,1748866257278,-434.53164151,0.00019452,2]
[363769391,1748866257288,-420.0,0.00019452,2]
[363769393,1748866257299,-420.0,0.00019452,2]
[363769395,1748866257308,-420.0,0.00019452,2]
[363769397,1748866257318,-420.0,0.00019452,2]
[363769399,1748866257328,-420.0,0.00019452,2]
[363769401,1748866257337,-428.4300659,0.00019452,2]
[363769403,1748866257347,-420.0,0.00019452,2]
[363769405,1748866257357,-420.0,0.00019452,2]
[363769407,1748866257366,-420.0,0.00019452,2]
[363769409,1748866257376,-420.0,0.00019452,2]
[363769411,1748866257385,-420.0,0.00019452,2]
[363769413,1748866257395,-420.0,0.00019452,2]
[363769414,1748866257404,-420.0,0.00019452,2]
[363769416,1748866257414,-378.81684816,0.00019452,2]
[363769418,1748866257423,-500.13279658,0.00019452,2]
[363769420,1748866257432,-420.0,0.00019452,2]
[363769422,1748866257441,-420.0,0.00019452,2]
[363769424,1748866257450,-440.91562554,0.00019452,2]
[363769426,1748866257460,-420.0,0.00019452,2]
[363769428,1748866257469,-420.0,0.00019452,2]
[363769430,1748866257479,-420.0,0.00019452,2]
[363769432,1748866257488,-420.0,0.00019452,2]
[363769434,1748866257498,-420.0,0.00019452,2]
[363769436,1748866257507,-420.0,0.00019452,2]
[363769438,1748866257517,-420.0,0.00019452,2]
[363769440,1748866257526,-420.0,0.00019452,2]
[363769454,1748866257664,-420.0,0.00019452,2]
[363769456,1748866257675,-469.44813852,0.00019452,2]
[363769458,1748866257686,-420.0,0.00019452,2]
[363769460,1748866257695,-420.0,0.00019452,2]
[363769462,1748866257705,-420.0,0.00019452,2]
[363769464,1748866257715,-420.0,0.00019452,2]
[363769466,1748866257725,-420.0,0.00019452,2]
[363769468,1748866257734,-311.67307303,0.00019452,2]
[363769470,1748866257742,-420.0,0.00019452,2]
[363769472,1748866257750,-420.0,0.00019452,2]
[363769474,1748866257758,-420.0,0.00019452,2]
[363769476,1748866257769,-420.0,0.00019452,2]
[363769478,1748866257779,-359.5344046,0.00019452,2]
[363769480,1748866257788,-432.15980761,0.00019452,2]
[363769482,1748866257799,-420.0,0.00019452,2]
[363769484,1748866257810,-420.0,0.00019452,2]
[363769486,1748866257821,-420.0,0.00019452,2]
[363769488,1748866257831,-461.04,0.00019452,2]
[363769489,1748866257840,-447.4866245,0.00019452,2]
[363769490,1748866257850,-160.31,0.00019452,2]
[363769491,1748866257859,-420.0,0.00019452,2]
[363769492,1748866257869,-420.0,0.00019452,2]
[363769493,1748866257878,-420.0,0.00019452,2]
[363769494,1748866257888,-420.0,0.00019452,2]
[363769495,1748866257897,-420.0,0.00019452,2]
[363769496,1748866257906,-165.96,0.00019452,2]
[363769497,1748866257918,-420.0,0.00019452,2]
[363769499,1748866257929,-481.6,0.00019452,2]
[363769501,1748866257938,-420.0,0.00019452,2]
[363769503,1748866257948,-180.2179445,0.00019452,2]
[363769505,1748866257958,-420.0,0.00019452,2]
[363769507,1748866257967,-495.13300608,0.00019452,2]
[363769509,1748866257976,-420.0,0.00019452,2]
[363769511,1748866257986,-420.0,0.00019452,2]
[363769513,1748866257995,-420.0,0.00019452,2]
[363769515,1748866258005,-420.0,0.00019452,2]
[363769517,1748866258015,-420.0,0.00019452,2]
[363769519,1748866258024,-420.0,0.00019452,2]
[363769521,1748866258033,-420.0,0.00019452,2]
[363769522,1748866258043,-420.0,0.00019452,2]
[363769525,1748866258055,-361.56,0.00019452,2]
[363769526,1748866258066,-420.0,0.00019452,2]
[363769528,1748866258075,-420.0,0.00019452,2]
[363769530,1748866258085,-508.86,0.00019452,2]
[363769532,1748866258095,-420.0,0.00019452,2]
[363769534,1748866258105,-420.0,0.00019452,2]
[363769536,1748866258115,-462.65948633,0.00019452,2]
[363769538,1748866258128,-420.0,0.00019452,2]
[363769540,1748866258138,-420.0,0.00019452,2]
[363769542,1748866258148,-420.0,0.00019452,2]
[363769544,1748866258157,-420.0,0.00019452,2]
[363769546,1748866258167,-420.0,0.00019452,2]
[363769548,1748866258176,-420.0,0.00019452,2]
[363769551,1748866258186,-420.0,0.00019452,2]
[363769553,1748866258195,-506.74,0.00019452,2]
[363769555,1748866258205,-420.0,0.00019452,2]
[363769556,1748866258215,-420.0,0.00019452,2]
[363769558,1748866258225,-420.0,0.00019452,2]
[363769561,1748866258235,-175.80742408,0.00019452,2]
[363769563,1748866258244,-420.0,0.00019452,2]
[363769565,1748866258254,-420.0,0.00019452,2]
[363769567,1748866258263,-420.0,0.00019452,2]
[363769569,1748866258273,-420.0,0.00019452,2]
[363769571,1748866258285,-150.02,0.00019452,2]
[363769573,1748866258294,-420.0,0.00019452,2]
[363769575,1748866258304,-420.0,0.00019452,2]
[363769577,1748866258318,-420.0,0.00019452,2]
[363769579,1748866258328,-420.0,0.00019452,2]
[363769581,1748866258337,-420.0,0.00019452,2]
[363769583,1748866258346,-420.0,0.00019452,2]
[363769585,1748866258356,-420.0,0.00019452,2]
[363769587,1748866258366,-420.0,0.00019452,2]
[363769589,1748866258375,-420.0,0.00019452,2]
[363769591,1748866258385,-431.8524174,0.00019452,2]
[363769593,1748866258395,-340.0,0.00019452,2]
[363769595,1748866258406,-420.0,0.00019452,2]
[363769597,1748866258416,-495.33,0.00019452,2]
[363769598,1748866258426,-420.0,0.00019452,2]
[363769601,1748866258437,-420.0,0.00019452,2]
[363769603,1748866258447,-420.0,0.00019452,2]
[363769605,1748866258457,-2346.62,0.00019452,2]
[363769606,1748866258467,-420.0,0.00019452,2]
[363769608,1748866258477,-420.0,0.00019452,2]
[363769610,1748866258486,-420.0,0.00019452,2]
[363769612,1748866258496,-420.0,0.00019452,2]
[363769614,1748866258506,-2394.9,0.00019452,2]
[363769616,1748866258515,-420.0,0.00019452,2]
[363769618,1748866258524,-420.0,0.00019452,2]
[363769620,1748866258534,-394.46772116,0.00019452,2]
[363769622,1748866258544,-1297.39,0.00019452,2]
[363769624,1748866258553,-420.0,0.00019452,2]
[363769626,1748866258565,-420.0,0.00019452,2]
[363769628,1748866258574,-423.49403943,0.00019452,2]
[363769630,1748866258585,-1297.67,0.00019452,2]
[363769632,1748866258594,-462.9255423,0.00019452,2]
[363769634,1748866258604,-467.73886006,0.00019452,2]
[363769636,1748866258614,-420.0,0.00019452,2]
[363769637,1748866258624,-420.0,0.00019452,2]
[363769639,1748866258634,-420.0,0.00019452,2]
[363769642,1748866258645,-420.0,0.00019452,2]
[363769643,1748866258654,-420.0,0.00019452,2]
[363769645,1748866258664,-420.0,0.00019452,2]
[363769647,1748866258673,-420.0,0.00019452,2]
[363769649,1748866258683,-420.0,0.00019452,2]
[363769651,1748866258692,-420.0,0.00019452,2]
[363769653,1748866258703,-420.0,0.00019452,2]
[363769655,1748866258713,-332.18965877,0.00019452,2]
[363769657,1748866258723,-420.0,0.00019452,2]
[363769659,1748866258733,-420.0,0.00019452,2]
[363769662,1748866258743,-420.0,0.00019452,2]
[363769664,1748866258753,-420.0,0.00019452,2]
[363769666,1748866258763,-420.0,0.00019452,2]
[363769668,1748866258772,-1000.0,0.00019452,2]
[363769670,1748866258782,-420.0,0.00019452,2]
[363769671,1748866258791,-1991.82,0.00019452,2]
[363769673,1748866258801,-420.0,0.00019452,2]
[363769676,1748866258814,-2432.56884,0.00019452,2]
[363769678,1748866258823,-420.0,0.00019452,2]
[363769680,1748866258832,-420.0,0.00019452,2]
[363769682,1748866258842,-420.0,0.00019452,2]
[363769684,1748866258852,-420.0,0.00019452,2]
[363769686,1748866258862,-420.0,0.00019452,2]
[363769688,1748866258871,-420.0,0.00019452,2]
[363769689,1748866258881,-420.0,0.00019452,2]
[363769691,1748866258891,-524.97,0.00019452,2]
[363769693,1748866258901,-589.22,0.00019452,2]
[363769695,1748866258911,-476.82,0.00019452,2]
[363769697,1748866258920,-420.0,0.00019452,2]
[363769700,1748866258930,-420.0,0.00019452,2]
[363769702,1748866258940,-420.0,0.00019452,2]
[363769703,1748866258949,-347.82750913,0.00019452,2]
[363769705,1748866258959,-420.0,0.00019452,2]
[363769707,1748866258969,-420.0,0.00019452,2]
[363769710,1748866258978,-435.58972321,0.00019452,2]
[363769711,1748866258987,-420.0,0.00019452,2]
[363769713,1748866258997,-1101.85,0.00019452,2]
[363769715,1748866259006,-1001.24,0.00019452,2]
[363769717,1748866259016,-681.4,0.00019452,2]
[363769719,1748866259026,-1007.64,0.00019452,2]
[363769721,1748866259035,-1074.37,0.00019452,2]
[363769723,1748866259045,-249.92887266,0.00019452,2]
[363769725,1748866259056,-420.0,0.00019452,2]
[363769727,1748866259067,-2223.6662,0.00019452,2]
[363769729,1748866259076,-420.0,0.00019452,2]
[363769731,1748866259086,-420.0,0.00019452,2]
[363769733,1748866259097,-1222.76,0.00019452,2]
[363769735,1748866259107,-151.87735,0.00019452,2]
[363769737,1748866259117,-420.0,0.00019452,2]
[363769739,1748866259129,-1702.4,0.00019452,2]
[363769741,1748866259139,-7518.89,0.00019452,2]
[363769743,1748866259148,-420.0,0.00019452,2]
[363769745,1748866259158,-420.0,0.00019452,2]
[363769747,1748866259168,-420.0,0.00019452,2]
[363769749,1748866259178,-662.91,0.00019452,2]
[363769751,1748866259188,-420.0,0.00019452,2]
[363769753,1748866259198,-420.0,0.00019452,2]
[363769755,1748866259208,-420.0,0.00019452,2]
[363769757,1748866259218,-512.83,0.00019452,2]
[363769759,1748866259228,-420.0,0.00019452,2]
[363769761,1748866259238,-420.0,0.00019452,2]
[363769763,1748866259247,-420.0,0.00019452,2]
[363769765,1748866259257,-438.84,0.00019452,2]
[363769767,1748866259266,-3843.98,0.00019452,2]
[363769768,1748866259275,-420.0,0.00019452,2]
[363769769,1748866259284,-420.0,0.00019452,2]
[363769770,1748866259293,-947.92,0.00019452,2]
[363769771,1748866259302,-523.06068151,0.00019452,2]
[363769772,1748866259311,-915.88,0.00019452,2]
[363769773,1748866259321,-420.0,0.00019452,2]